bitfinex/quotes_ETHUSD_20251021
["timestamp","ask_amount","ask_price","bid_price","bid_amount"]
[1761048179507,36.95397417,3895.4,3895.3,0.002]
[1761048180625,36.56201217,3895.4,3895.3,0.002]
[1761048181112,33.15037817,3895.4,3895.3,0.002]
[1761048181511,15.21527317,3895.4,3895.3,0.002]
[1761048181821,39.85515217,3895.4,3895.3,0.002]
[1761048182408,39.50657617,3895.4,3895.3,0.002]
[1761048182594,51.27532889,3895.4,3895.3,0.002]
[1761048182800,51.37492889,3895.4,3895.3,0.002]
[1761048183010,51.80782889,3895.4,3895.3,0.002]
[1761048183498,36.23433807,3895.4,3895.3,0.002]
[1761048183702,39.03780907,3895.4,3895.3,0.002]
[1761048184018,39.44053242,3895.4,3895.3,0.002]
[1761048184246,44.71242724,3895.4,3895.3,0.002]
[1761048184516,44.30970389,3895.4,3895.3,0.002]
[1761048184719,51.37492889,3895.4,3895.3,0.002]
[1761048184914,51.88180889,3895.4,3895.3,0.002]
[1761048186191,58.31180889,3895.4,3895.3,0.002]
[1761048186591,28.31180889,3895.4,3895.3,0.002]
[1761048186797,58.71456058,3895.4,3895.3,0.002]
[1761048187325,59.11730325,3895.4,3895.3,0.002]
[1761048188433,20.89511858,3894.3,3894.2,0.4329]
[1761048188735,37.2115564,3894.3,3894.2,0.4329]
[1761048188933,32.1305734,3894.3,3894.2,0.4329]
[1761048189137,31.5387424,3894.3,3894.2,0.4329]
[1761048189521,31.5387424,3894.3,3893.5,0.4329]
[1761048189522,2.56805341,3894.0,3893.5,0.4329]
[1761048189706,9.21484225,3895.4,3893.6,0.2155]
[1761048189907,20.522486,3895.1,3894.0,0.2155]
[1761048190205,0.128,3894.3,3894.1,2.56797533]
[1761048190408,0.128,3894.3,3894.2,0.4329]
[1761048190940,0.128,3894.3,3894.2,3.00082152]
[1761048191321,0.128,3894.3,3894.2,0.4329]
[1761048196040,3.365,3894.3,3894.2,0.4329]
[1761048202861,0.128,3894.3,3894.2,0.4329]
[1761048203032,3.365,3894.3,3894.2,0.4329]
[1761048203232,0.128,3894.3,3894.2,0.4329]
[1761048204969,0.128,3894.3,3894.0,0.2155]
[1761048205128,1.728,3894.4,3894.1,0.4682]
[1761048206561,6.237538,3894.0,3893.6,0.2155]
[1761048206807,3.237,3894.0,3893.7,0.4682]
[1761048207643,2.440593,3894.3,3893.7,0.4682]
[1761048207861,3.237,3894.3,3894.2,0.2286]
[1761048208036,3.237,3894.3,3894.2,0.6968]
[1761048208223,3.237,3894.3,3893.9,0.4682]
[1761048208423,0.128,3894.0,3893.9,0.4682]
[1761048213265,0.128,3894.0,3893.6,0.2175]
[1761048213468,1.728,3893.7,3893.6,0.002]
[1761048213632,4.965,3893.7,3893.6,0.002]
[1761048214162,18.78749027,3893.7,3893.6,0.002]
[1761048214403,18.08892027,3893.7,3893.6,0.002]
[1761048214899,17.59119927,3893.7,3893.6,0.002]
[1761048215195,18.78223748,3893.7,3893.6,0.002]
[1761048215590,18.88133748,3893.7,3893.6,0.002]
[1761048215954,30.74669348,3893.7,3893.6,0.002]
[1761048216756,29.71599348,3893.7,3893.6,0.002]
[1761048216961,9.66909348,3893.7,3893.6,0.002]
[1761048217160,27.89475348,3893.7,3893.6,0.002]
[1761048217960,22.21071248,3893.7,3893.6,0.002]
[1761048218163,20.04231048,3893.7,3893.6,0.002]
[1761048219103,24.56253748,3893.7,3893.6,0.002]
[1761048219270,13.64791648,3893.7,3893.6,0.002]
[1761048219471,6.93726048,3893.7,3893.6,0.002]
[1761048219670,7.85351627,3893.7,3893.6,0.4633]
[1761048219872,9.58151627,3893.7,3893.6,0.002]
[1761048220173,9.62448127,3893.7,3893.6,0.002]
[1761048220963,7.53525127,3893.7,3893.6,0.002]
[1761048221162,12.57954927,3893.7,3893.6,0.002]
[1761048222116,12.95124227,3893.7,3893.6,0.002]
[1761048222514,12.42767827,3893.7,3893.6,0.002]
[1761048223211,24.47667685,3893.7,3893.6,0.002]
[1761048223588,24.15051585,3893.7,3893.6,0.002]
[1761048224181,26.48011285,3893.7,3893.6,0.002]
[1761048224914,26.57921285,3893.7,3893.6,0.002]
[1761048225126,33.92573085,3893.7,3893.6,0.002]
[1761048225308,8.64630785,3893.7,3893.6,0.002]
[1761048225626,10.71167685,3893.7,3893.6,0.4633]
[1761048226004,10.71167685,3893.7,3893.6,0.002]
[1761048226318,23.75637885,3893.7,3893.6,0.002]
[1761048226488,20.57923885,3893.7,3893.6,0.002]
[1761048226818,19.83723885,3893.7,3893.6,0.002]
[1761048227214,8.64530785,3893.7,3893.6,0.002]
[1761048227513,18.18052885,3893.7,3893.6,0.002]
[1761048228288,19.62751285,3893.7,3893.6,0.002]
[1761048228730,18.04371885,3893.7,3893.6,0.002]
[1761048229019,16.32078285,3893.7,3893.6,0.002]
[1761048229424,20.67698185,3893.7,3893.6,0.002]
[1761048229632,17.57118785,3893.7,3893.6,0.002]
[1761048230421,27.96564285,3893.7,3893.6,0.002]
[1761048230622,25.23573585,3893.7,3893.6,0.002]
[1761048230817,14.30505085,3893.7,3893.6,0.002]
[1761048231434,20.49675285,3893.7,3893.6,0.002]
[1761048231634,11.88068285,3893.7,3893.6,0.002]
[1761048232661,20.64078185,3893.7,3893.6,0.002]
[1761048233174,18.38695185,3893.7,3893.6,0.002]
[1761048233456,8.64530785,3893.7,3893.6,0.002]
[1761048233646,14.88157385,3893.7,3893.6,0.002]
[1761048233844,13.10473585,3893.7,3893.6,0.002]
[1761048234047,12.80429685,3893.7,3893.6,0.002]
[1761048234242,8.64530785,3893.7,3893.6,0.002]
[1761048234565,2.83905658,3893.7,3893.6,0.002]
[1761048234715,3.238,3893.7,3893.6,0.4633]
[1761048234921,3.366,3893.7,3893.6,0.4633]
[1761048235121,0.128,3893.7,3893.6,0.4633]
[1761048238470,0.128,3893.7,3893.6,3.03161723]
[1761048239089,0.40280049,3894.6,3893.8,2.56813061]
[1761048239385,6.7862609,3895.3,3893.9,2.5680986]
[1761048239386,0.128,3894.1,3893.9,2.5680986]
[1761048239561,0.128,3894.1,3894.0,3.02935341]
[1761048240142,0.128,3894.1,3893.7,2.56820509]
[1761048240439,0.128,3894.1,3893.8,0.4613]
[1761048240874,0.128,3894.1,3894.0,2.56805341]
[1761048241179,3.24,3894.5,3894.0,2.56805341]
[1761048241381,0.128,3894.3,3894.1,0.67737987]
[1761048241673,0.128,3894.3,3894.1,3.24536337]
[1761048241873,3.24,3894.7,3894.2,0.432]
[1761048242181,0.128,3894.6,3894.2,2.99992142]
[1761048242675,0.128,3894.6,3894.3,0.432]
[1761048243874,0.128,3894.9,3894.4,0.02567789]
[1761048244093,0.129,3895.3,3895.2,0.2197]
[1761048244532,0.129,3895.3,3895.2,0.6517]
[1761048244683,0.129,3895.3,3895.2,3.21896227]
[1761048244883,0.001,3895.3,3895.2,3.21896227]
[1761048247190,0.001,3895.3,3895.2,3.37263489]
[1761048247488,0.001,3895.3,3895.2,3.87951489]
[1761048247687,0.001,3895.3,3895.2,3.85384227]
[1761048249826,0.001,3895.3,3895.2,3.87951489]
[1761048250657,0.001,3895.3,3895.2,3.85384227]
[1761048252334,0.001,3895.3,3895.2,7.09484227]
[1761048253845,0.001,3895.3,3895.2,6.66284227]
[1761048254054,0.001,3895.3,3895.2,0.128]
[1761048254654,0.128,3895.2,3894.6,6.02829711]
[1761048254854,0.128,3895.2,3894.7,2.56757843]
[1761048255662,0.1442,3894.8,3894.0,0.432]
[1761048255867,0.2722,3894.8,3894.1,2.56797758]
[1761048256677,0.2722,3894.8,3894.0,0.56]
[1761048256978,0.128,3894.6,3894.0,0.128]
[1761048257285,0.128,3894.3,3893.7,3.0002512]
[1761048257473,0.128,3894.3,3893.7,0.432]
[1761048257675,0.128,3894.3,3893.8,0.432]
[1761048257886,1.728,3894.9,3894.2,2.79902152]
[1761048258180,0.128,3894.6,3894.2,2.79902152]
[1761048258582,0.128,3894.6,3894.2,3.23792152]
[1761048258782,0.128,3894.6,3894.2,0.67]
[1761048258981,0.128,3894.6,3894.2,2.79901219]
[1761048259152,0.128,3894.6,3894.3,0.4389]
[1761048260180,0.128,3894.6,3894.3,3.00675519]
[1761048260382,0.128,3894.6,3894.4,2.56777305]
[1761048260570,0.128,3894.6,3894.5,2.59340094]
[1761048260778,0.128,3895.1,3894.7,1.728]
[1761048260975,0.128,3895.1,3894.9,2.56745162]
[1761048261373,0.128,3895.1,3895.0,0.4389]
[1761048261753,0.128,3895.1,3894.5,1.856]
[1761048261953,0.001,3895.3,3894.5,4.29572369]
[1761048262200,0.001,3895.3,3894.4,3.6819]
[1761048262201,0.128,3894.9,3894.4,0.4389]
[1761048262499,0.128,3894.9,3894.4,2.56777591]
[1761048262675,0.128,3894.9,3894.4,0.4389]
[1761048262880,0.128,3894.9,3894.5,0.4389]
[1761048264975,0.128,3894.9,3894.5,3.00662222]
[1761048265514,0.128,3894.9,3894.5,0.4389]
[1761048266820,0.128,3894.9,3894.3,2.56985218]
[1761048267113,0.1446,3894.9,3894.3,0.002]
[1761048267282,0.128,3894.6,3894.4,0.4389]
[1761048268416,0.128,3894.6,3894.3,2.56982243]
[1761048268576,0.128,3894.6,3894.3,0.002]
[1761048268777,0.128,3894.6,3894.3,2.56984131]
[1761048269500,0.128,3894.6,3894.3,3.00874131]
[1761048271215,0.128,3894.6,3894.5,2.56772371]
[1761048271575,0.128,3894.6,3894.5,3.00992371]
[1761048272101,0.128,3894.6,3894.5,0.4422]
[1761048272803,0.128,3894.6,3894.5,3.00992371]
[1761048273006,0.001,3895.3,3894.6,2.56759913]
[1761048273318,0.128,3894.8,3894.7,0.02567591]
[1761048273522,0.128,3894.8,3894.7,3.03546776]
[1761048275320,0.128,3894.8,3894.7,0.02567591]
[1761048276022,0.128,3894.8,3894.6,2.56763482]
[1761048276385,0.128,3894.8,3894.7,0.02567591]
[1761048278231,0.128,3894.8,3894.7,2.59326776]
[1761048280549,0.128,3894.8,3894.7,2.56759185]
[1761048280751,0.128,3894.8,3894.6,2.56764248]
[1761048280929,1.729,3895.3,3894.6,2.56764248]
[1761048281124,0.128,3895.2,3894.6,0.4422]
[1761048281349,0.128,3895.2,3894.7,2.56757154]
[1761048281848,0.128,3895.2,3894.8,2.56751602]
[1761048282070,0.128,3895.2,3894.7,3.00979049]
[1761048282357,0.128,3895.2,3894.7,0.4422]
[1761048282849,0.128,3895.2,3894.7,3.00977543]
[1761048283150,0.128,3895.2,3894.7,2.56757543]
[1761048287770,0.128,3895.2,3894.7,3.00977543]
[1761048287965,0.128,3895.2,3894.8,2.56752593]
[1761048288174,0.128,3895.2,3894.9,0.4422]
[1761048288377,0.128,3895.2,3895.1,0.2218]
[1761048288869,0.128,3895.2,3894.9,3.00964474]
[1761048289069,0.128,3895.2,3895.0,0.4422]
[1761048289735,0.001,3895.3,3894.9,2.56739906]
[1761048289938,0.001,3895.3,3895.2,2.56726227]
[1761048290458,0.001,3895.3,3895.2,3.00946227]
[1761048295887,0.001,3895.3,3895.2,3.13746227]
[1761048297105,0.001,3895.3,3895.2,3.16313489]
[1761048297388,0.001,3895.3,3895.2,3.13746227]
[1761048297555,0.001,3895.3,3895.2,3.16313489]
[1761048299859,0.001,3895.3,3895.2,3.67001489]
[1761048301391,0.001,3895.3,3895.2,3.64434227]
[1761048308699,0.001,3895.3,3895.2,3.67001489]
[1761048308878,0.001,3895.3,3895.2,5.39801489]
[1761048309077,0.001,3895.3,3895.2,5.37234227]
[1761048310915,0.001,3895.3,3895.2,6.89904227]
[1761048312614,0.001,3895.3,3895.2,6.44014227]
[1761048313804,0.001,3895.3,3895.2,6.89904227]
[1761048314190,0.001,3895.3,3895.2,8.62704227]
[1761048317920,0.001,3895.3,3895.2,8.49904227]
[1761048320122,0.001,3895.3,3895.2,6.31214227]
[1761048320429,0.001,3895.3,3895.2,6.77104227]
[1761048321732,0.001,3895.3,3895.2,6.31214227]
[1761048322334,0.001,3895.3,3895.2,6.77104227]
[1761048323201,0.001,3895.3,3895.2,6.31214227]
[1761048323432,0.001,3895.3,3895.2,6.77104227]
[1761048327857,0.001,3895.3,3895.2,6.89904227]
[1761048328047,0.001,3895.3,3895.2,11.33404227]
[1761048328235,0.001,3895.3,3895.2,8.62704227]
[1761048332033,0.001,3895.3,3895.2,18.30396241]
[1761048337944,0.001,3895.3,3895.2,8.75644227]
[1761048338146,0.001,3895.3,3895.2,8.29754227]
[1761048338371,0.001,3895.3,3895.2,6.52156227]
[1761048338577,0.001,3895.3,3895.2,8.49904227]
[1761048339075,0.001,3895.3,3895.2,7.99216227]
[1761048339260,0.001,3895.3,3895.2,8.49904227]
[1761048340570,0.001,3895.3,3895.2,8.04014227]
[1761048340943,0.001,3895.3,3895.2,8.49904227]
[1761048341551,0.001,3895.3,3895.2,8.62704227]
[1761048344979,0.001,3895.3,3895.2,8.16814227]
[1761048345948,0.001,3895.3,3895.2,8.62704227]
[1761048346350,0.001,3895.3,3895.2,8.16814227]
[1761048347981,0.001,3895.3,3895.2,8.37734227]
[1761048348186,0.001,3895.3,3895.2,11.08434227]
[1761048348384,0.001,3895.3,3895.2,8.83624227]
[1761048349875,0.001,3895.3,3895.2,8.37734227]
[1761048350161,0.001,3895.3,3895.2,8.83624227]
[1761048350354,0.001,3895.3,3895.2,8.37734227]
[1761048352556,0.001,3895.3,3895.2,8.16814227]
[1761048352890,0.001,3895.3,3895.2,8.27104926]
[1761048353882,0.001,3895.3,3895.2,8.72994926]
[1761048354486,0.001,3895.3,3895.2,8.27104926]
[1761048355789,0.001,3895.3,3895.2,8.72994926]
[1761048360599,0.001,3895.3,3895.2,15.5704694]
[1761048367702,53.244033,3896.2,3896.1,3.07354923]
[1761048368010,53.244033,3896.2,3896.1,6.31154923]
[1761048368311,53.343033,3896.2,3896.1,6.31154923]
[1761048369793,53.344033,3896.2,3896.1,6.31154923]
[1761048370107,53.245033,3896.2,3896.1,6.31154923]
[1761048370517,53.245033,3896.2,3896.1,6.77684923]
[1761048371825,53.245033,3896.2,3896.1,6.31154923]
[1761048372024,53.245033,3896.2,3896.1,6.77684923]
[1761048372333,0.001,3896.6,3896.4,3.07335161]
[1761048372625,0.001,3896.6,3896.4,14.90453646]
[1761048372812,0.001,3896.6,3896.4,15.34417175]
[1761048373220,0.001,3897.8,3896.9,2.56614231]
[1761048373221,0.1,3897.8,3896.9,2.56614231]
[1761048373417,0.001,3897.8,3896.9,8.06468373]
[1761048373632,0.1087,3897.6,3896.9,8.50432231]
[1761048375434,0.1087,3897.6,3896.9,8.03902231]
[1761048375603,0.1087,3897.6,3896.9,8.50432231]
[1761048376717,0.1087,3897.6,3896.9,8.03902231]
[1761048376906,0.1001,3897.0,3896.9,8.03902231]
[1761048377516,0.1001,3897.0,3896.9,6.31102231]
[1761048377729,0.1001,3897.0,3896.9,6.43902231]
[1761048382336,0.001,3897.0,3896.9,6.43902231]
[1761048383739,0.001,3897.0,3896.9,8.16702231]
[1761048383942,0.001,3897.0,3896.9,8.61992231]
[1761048385354,0.001,3897.0,3896.9,8.72277585]
[1761048387288,0.001,3897.8,3897.7,3.07249561]
[1761048387569,0.001,3897.8,3897.7,15.00501575]
[1761048387854,0.001,3897.8,3897.7,15.45791575]
[1761048388830,0.001,3897.8,3897.7,15.71531575]
[1761048389234,0.001,3897.8,3897.7,18.54984282]
[1761048390763,0.001,3897.8,3897.7,17.40037495]
[1761048391385,0.001,3897.8,3897.7,17.27284788]
[1761048393038,0.001,3897.8,3897.7,17.40173115]
[1761048393852,0.001,3898.2,3898.1,10.49128462]
[1761048394057,0.001,3898.2,3898.1,13.95828462]
[1761048394289,0.001,3898.2,3898.1,14.39518462]
[1761048394439,0.001,3898.2,3898.1,14.52318462]
[1761048395773,0.001,3899.2,3898.7,3.07183754]
[1761048396065,0.001,3899.2,3898.7,13.72688981]
[1761048396269,0.2091,3899.2,3898.7,13.72688981]
[1761048397079,0.2081,3899.0,3898.7,13.72688981]
[1761048397636,0.1,3898.8,3898.7,8.03583754]
[1761048397872,0.001,3898.8,3898.7,13.72688981]
[1761048398392,0.1,3898.8,3898.7,13.72688981]
[1761048399394,0.001,3898.8,3898.7,13.22000981]
[1761048399802,0.001,3898.8,3898.7,13.72688981]
[1761048400093,0.001,3898.8,3898.7,8.03583754]
[1761048400260,0.2091,3898.8,3898.7,13.72688981]
[1761048402597,0.2091,3898.8,3898.7,16.43388981]
[1761048402792,0.2091,3898.8,3898.7,13.72688981]
[1761048403001,0.001,3898.8,3898.7,13.72688981]
[1761048403907,0.001,3898.8,3898.7,13.98428981]
[1761048405569,0.1001,3898.8,3898.7,13.98428981]
[1761048405794,0.1001,3898.8,3898.7,14.11228981]
[1761048406412,0.001,3898.8,3898.7,14.11228981]
[1761048411214,0.001,3898.8,3898.7,8.16383754]
[1761048411416,0.1001,3898.8,3898.7,8.16383754]
[1761048411619,0.1001,3898.8,3898.7,3.237]
[1761048411791,0.1001,3898.8,3898.7,5.80195754]
[1761048412704,0.1001,3898.8,3898.1,0.002]
[1761048413018,0.59012523,3898.7,3898.2,3.237]
[1761048413318,0.59012523,3898.7,3898.3,2.56516471]
[1761048413492,0.0991,3898.6,3898.3,2.56516471]
[1761048413692,0.0991,3898.6,3898.2,3.237]
[1761048414098,0.0991,3898.6,3898.3,2.56517048]
[1761048414342,6.43929002,3898.6,3898.2,3.237]
[1761048414622,2.56528654,3898.2,3898.1,0.002]
[1761048414782,13.44328454,3898.2,3898.1,0.002]
[1761048414985,12.24056454,3898.2,3898.1,0.002]
[1761048415223,2.1487794,3898.2,3898.1,0.002]
[1761048415383,0.0991,3898.2,3898.1,0.002]
[1761048417617,5.79015227,3898.2,3898.1,0.002]
[1761048420219,8.35543881,3898.2,3898.1,0.002]
[1761048421229,5.79015227,3898.2,3898.1,0.002]
[1761048421795,8.35543881,3898.2,3898.1,0.002]
[1761048421991,30.20762179,3898.2,3898.1,0.002]
[1761048422217,24.96336679,3898.2,3898.1,0.002]
[1761048422525,19.35577179,3898.2,3898.1,0.002]
[1761048422746,25.04682406,3898.2,3898.1,0.002]
[1761048422944,25.04682406,3898.2,3897.7,0.002]
[1761048422945,22.88454279,3897.8,3897.7,0.002]
[1761048423102,21.48297206,3897.8,3897.7,0.002]
[1761048423298,21.72547206,3897.8,3897.7,0.002]
[1761048423605,2.5658131,3897.4,3897.3,0.002]
[1761048423808,32.52053837,3897.4,3897.3,0.002]
[1761048424007,26.15615455,3897.4,3897.3,0.002]
[1761048424210,24.99516355,3897.4,3897.3,0.002]
[1761048424607,28.23516355,3897.4,3897.3,0.002]
[1761048425003,15.91591555,3897.4,3897.3,0.002]
[1761048425207,34.61536155,3897.4,3897.3,0.002]
[1761048426098,43.75846355,3897.4,3897.3,0.002]
[1761048426924,26.67973628,3897.4,3897.3,0.002]
[1761048427127,10.06734018,3897.4,3897.3,0.002]
[1761048427328,15.73215537,3897.4,3897.3,0.002]
[1761048429822,10.75805227,3897.4,3897.3,0.002]
[1761048430532,1.955,3897.4,3897.3,0.002]
[1761048430862,1.8426,3899.4,3897.4,2.5658131]
[1761048430863,0.1449,3897.8,3897.4,2.5658131]
[1761048431153,3.3849,3897.8,3897.3,0.002]
[1761048431442,3.4839,3897.8,3897.3,0.002]
[1761048431746,0.099,3897.7,3897.3,0.002]
[1761048432072,5.69105227,3897.4,3897.3,0.002]
[1761048432370,13.0914071,3897.4,3897.3,0.002]
[1761048432568,13.1904071,3897.4,3897.3,0.002]
[1761048432712,10.3947301,3897.4,3897.3,0.002]
[1761048433144,26.7466111,3897.4,3897.3,0.002]
[1761048433352,14.70683128,3897.4,3897.3,0.002]
[1761048433554,13.23609628,3897.4,3897.3,0.002]
[1761048433852,13.00802828,3897.4,3897.3,0.002]
[1761048434157,10.51898328,3897.4,3897.3,0.002]
[1761048434313,15.90929128,3897.4,3897.3,0.002]
[1761048434915,14.21469128,3897.4,3897.3,0.002]
[1761048435115,28.11398928,3897.4,3897.3,0.002]
[1761048435379,8.49986328,3897.4,3897.3,0.002]
[1761048435519,5.9078131,3897.4,3897.3,0.002]
[1761048435722,2.6648131,3897.4,3897.3,0.002]
[1761048436049,17.9618091,3897.4,3897.3,0.002]
[1761048436567,8.4743801,3897.4,3897.3,0.002]
[1761048437167,5.2313801,3897.4,3897.3,0.002]
[1761048437345,9.36941817,3897.4,3897.3,0.002]
[1761048440937,6.80285117,3897.4,3897.3,0.002]
[1761048441447,6.70385117,3897.4,3897.3,0.002]
[1761048441649,6.80285117,3897.4,3897.3,0.002]
[1761048441849,0.89503807,3897.4,3897.3,0.002]
[1761048442185,0.128,3897.6,3897.3,0.4643]
[1761048443575,0.128,3897.6,3897.3,0.002]
[1761048444148,0.128,3897.6,3897.3,0.4643]
[1761048444480,0.128,3897.6,3897.3,3.03012982]
[1761048444788,0.2439,3897.5,3897.3,0.002]
[1761048445149,0.099,3897.4,3897.3,0.002]
[1761048445394,0.1449,3897.5,3897.3,0.002]
[1761048446669,0.128,3897.6,3897.3,0.002]
[1761048446859,0.128,3897.6,3897.3,0.4643]
[1761048447059,0.128,3897.6,3897.3,0.002]
[1761048450146,0.0995,3897.5,3897.3,0.002]
[1761048450571,0.128,3897.6,3897.3,0.002]
[1761048451050,0.128,3897.6,3897.4,0.4688]
[1761048451282,0.128,3897.6,3897.4,3.03460046]
[1761048451588,0.001,3897.7,3897.6,2.56568144]
[1761048451791,0.001,3897.7,3897.6,3.16248144]
[1761048452854,0.001,3897.7,3897.6,3.18813825]
[1761048455251,0.001,3897.7,3897.6,3.16248144]
[1761048455487,0.001,3897.7,3897.6,3.18813825]
[1761048457098,0.001,3897.7,3897.6,3.69501825]
[1761048457396,0.001,3897.7,3897.6,3.79736144]
[1761048461978,0.001,3897.7,3897.6,3.82301825]
[1761048463010,0.001,3897.7,3897.6,5.55101825]
[1761048463313,0.001,3897.7,3897.6,5.39736144]
[1761048463680,0.001,3897.7,3897.6,3.66936144]
[1761048465796,0.001,3897.7,3897.6,3.20056144]
[1761048467902,0.001,3897.7,3897.6,3.07256144]
[1761048469118,0.001,3897.7,3897.6,6.31156144]
[1761048470329,0.001,3897.7,3897.6,6.78036144]
[1761048471222,0.001,3897.7,3897.6,6.31156144]
[1761048472521,0.001,3897.7,3897.6,5.80468144]
[1761048473131,0.001,3897.7,3897.6,5.93468144]
[1761048474519,0.001,3897.7,3897.6,6.40348144]
[1761048474722,0.001,3897.7,3897.6,5.93468144]
[1761048478738,0.001,3897.7,3897.6,3.369]
[1761048478939,0.102,3897.7,3897.6,3.369]
[1761048479232,0.102,3897.7,3897.6,0.002]
[1761048479836,0.23,3897.7,3897.6,0.002]
[1761048480320,19.69415438,3897.7,3897.6,0.002]
[1761048480528,12.29265138,3897.7,3897.6,0.002]
[1761048480708,9.66206838,3897.7,3897.6,0.002]
[1761048480904,6.93106238,3897.7,3897.6,0.002]
[1761048481442,9.06561238,3897.7,3897.6,0.002]
[1761048481810,4.87783077,3897.7,3897.6,0.002]
[1761048482341,0.29487077,3897.7,3897.6,0.002]
[1761048482521,0.001,3897.7,3897.6,0.002]
[1761048482846,0.001,3897.7,3897.6,2.56768144]
[1761048483231,0.001,3897.7,3897.6,0.002]
[1761048483423,0.2285,3897.7,3897.6,0.002]
[1761048485641,2.79411561,3897.7,3897.6,0.002]
[1761048485944,4.02800565,3897.7,3897.6,0.002]
[1761048495450,11.31119765,3897.7,3897.6,0.002]
[1761048495962,19.46919765,3897.7,3897.6,0.002]
[1761048496159,39.40040098,3897.4,3897.3,0.002]
[1761048496463,44.36940098,3897.4,3897.3,0.002]
[1761048496752,47.06095116,3897.4,3897.3,0.002]
[1761048499328,29.87119316,3897.4,3897.3,0.002]
[1761048499527,42.43789816,3897.4,3897.3,0.002]
[1761048500560,32.56607646,3897.0,3896.9,0.002]
[1761048500863,39.00482052,3897.0,3896.9,0.002]
[1761048501064,4.29414231,3896.9,3896.8,0.002]
[1761048501253,23.47580988,3896.6,3895.1,0.002]
[1761048501452,8.05973488,3896.6,3895.8,0.4312]
[1761048501643,11.87793088,3896.6,3895.8,0.4312]
[1761048501960,14.43451098,3896.6,3895.8,0.4312]
[1761048502151,14.53351098,3896.6,3895.8,0.4312]
[1761048502333,14.53351098,3896.6,3895.6,0.4312]
[1761048502539,29.50437257,3896.6,3895.3,2.99839063]
[1761048502925,26.14919457,3896.6,3895.3,2.99839063]
[1761048503131,26.14919457,3896.6,3895.4,0.4312]
[1761048503728,29.98800357,3896.6,3895.4,0.4312]
[1761048504861,31.48082957,3896.6,3895.4,0.4312]
[1761048505162,29.04797657,3896.6,3895.4,0.4312]
[1761048505549,29.45063359,3896.6,3895.4,0.4312]
[1761048505859,32.94627059,3896.6,3895.4,0.4312]
[1761048506758,32.16125559,3896.6,3895.4,0.4312]
[1761048506968,32.16125559,3896.6,3895.1,0.13]
[1761048507488,32.16125559,3896.6,3895.1,0.5612]
[1761048507627,28.65602859,3896.6,3895.1,0.13]
[1761048507829,23.80148859,3896.6,3895.3,0.4312]
[1761048508051,20.48383859,3896.6,3895.3,0.4312]
[1761048508252,20.58283859,3896.6,3895.7,0.4312]
[1761048508761,26.65392959,3896.6,3895.7,0.4312]
[1761048508967,26.26040659,3896.6,3895.7,0.4312]
[1761048509163,25.63440659,3896.6,3895.7,0.4312]
[1761048509467,25.63440659,3896.6,3896.1,0.002]
[1761048509468,15.81357359,3896.6,3896.1,0.002]
[1761048509852,21.03312659,3896.6,3896.1,0.002]
[1761048510038,16.00475559,3896.6,3896.1,0.002]
[1761048510239,16.10375559,3896.6,3896.1,0.002]
[1761048510940,25.94926459,3896.6,3896.1,0.002]
[1761048511577,20.15112559,3896.6,3896.1,0.002]
[1761048511880,10.09292959,3896.6,3896.1,0.002]
[1761048512178,20.54409459,3896.6,3896.1,0.002]
[1761048512675,10.09292959,3896.6,3896.1,0.002]
[1761048512874,12.55397073,3896.6,3896.1,0.6707]
[1761048513084,13.22963085,3896.6,3896.1,0.2189]
[1761048513279,2.13065702,3896.6,3896.5,0.4538]
[1761048513580,11.07569816,3896.6,3896.5,0.4538]
[1761048513748,6.10569816,3896.6,3896.5,0.4538]
[1761048513950,9.34869816,3896.6,3896.5,0.4538]
[1761048514460,8.94604114,3896.6,3896.5,0.4538]
[1761048514658,3.243,3896.6,3896.5,0.4538]
[1761048515015,8.94604114,3896.6,3896.5,0.4538]
[1761048515150,5.70304114,3896.6,3896.5,0.4538]
[1761048515350,8.94604114,3896.6,3896.5,0.4538]
[1761048515676,11.51238102,3896.6,3896.5,0.4538]
[1761048516466,8.94604114,3896.6,3896.5,0.4538]
[1761048517172,8.94604114,3896.6,3896.5,0.002]
[1761048517369,8.94604114,3896.6,3896.5,0.4538]
[1761048518805,0.128,3896.7,3896.5,0.4538]
[1761048519001,3.369,3896.7,3896.5,0.4538]
[1761048519306,5.70304114,3897.2,3896.5,0.4538]
[1761048519604,0.128,3896.9,3896.5,0.4538]
[1761048519808,0.128,3896.9,3896.5,3.02020239]
[1761048520303,0.128,3896.9,3896.6,0.4518]
[1761048520680,0.128,3896.9,3896.6,3.01813924]
[1761048520881,0.128,3896.9,3896.6,0.4518]
[1761048521097,0.128,3896.9,3896.7,0.4518]
[1761048522402,0.128,3896.9,3896.7,3.01802939]
[1761048522603,0.001,3897.4,3896.8,2.56620817]
[1761048522768,0.128,3897.2,3896.8,0.4518]
[1761048522979,0.128,3897.2,3896.9,0.4518]
[1761048523177,0.128,3897.2,3897.1,0.2169]
[1761048523581,0.128,3897.2,3897.1,0.6687]
[1761048528423,6.83754525,3897.2,3896.5,0.002]
[1761048528632,0.128,3896.6,3896.5,0.002]
[1761048529176,2.69433988,3896.6,3896.5,0.002]
[1761048529375,0.128,3896.6,3896.5,0.002]
[1761048529578,1.57435352,3896.6,3896.5,0.002]
[1761048530718,0.128,3896.6,3896.5,0.002]